fUSD/lending_fUSD_20250610
["ID","MTS","AMOUNT","RATE_DAILY","PERIOD"]
[365193825,1749526921813,-180.74316641,0.00016001,2]
[365193826,1749526950162,500.0,0.00015872,2]
[365193828,1749527040015,460.0,0.0002465,120]
[365193829,1749527043587,-176.14167058,0.00016001,2]
[365193833,1749527045391,-28.10399942,0.00016001,2]
[365193834,1749527045416,-172.91014188,0.00016055,2]
[365193835,1749527048091,-127.08985812,0.00016055,2]
[365193836,1749527051885,200.0,0.00016001,2]
[365193837,1749527053167,1500.0,0.00015819,2]
[365193838,1749527093673,-250.0,0.00016028,2]
[365193839,1749527096067,-221.61841144,0.00016028,2]
[365193840,1749527099127,-234.42731617,0.00016028,2]
[365193841,1749527100408,1333.0,0.0002431,120]
[365193842,1749527100470,286.0,0.0002465,120]
[365193843,1749527101398,-216.87393815,0.00016028,2]
[365193844,1749527108050,-11.98515224,0.00016028,2]
[365193845,1749527159482,1000.0,0.00015846,2]
[365193846,1749527159521,150.0,0.00015846,7]
[365193847,1749527172311,356.0,0.00015445,2]
[365193848,1749527172579,356.0,0.00015896,2]
[365193849,1749527177014,177.3,0.00015724,2]
[365193850,1749527202462,150.0,0.00017052,5]
[365193851,1749527226608,400.0,0.000169,6]
[365193853,1749527250704,-153.70115456,0.00016028,2]
[365193854,1749527256269,-266.63957086,0.00016028,2]
[365193857,1749527259695,-266.04535218,0.00016028,2]
[365193858,1749527262007,242.97543,0.00015445,2]
[365193859,1749527262782,-209.2414494,0.00016028,2]
[365193860,1749527276571,500.0,0.00015164,2]
[365193861,1749527277577,500.0,0.00015164,2]
[365193862,1749527292220,350.02457,0.00015445,2]
[365193865,1749527339634,745.0,0.0002465,120]
[365193867,1749527411859,379.0,0.00015445,2]
[365193892,1749527432065,-600.0,0.00016125,4]
[365193893,1749527432074,-250.0,0.00016142,2]
[365193894,1749527432084,-271.69277369,0.0001633,2]
[365193895,1749527432094,-356.0,0.00016346,3]
[365193896,1749527432104,-631.85,0.00016347,2]
[365193897,1749527432113,-5719.34593,0.00016427,2]
[365193898,1749527432123,-1200.0,0.00016427,2]
[365193899,1749527432133,-151.0,0.00016428,2]
[365193900,1749527432142,-1957.856,0.00016428,2]
[365193901,1749527432152,-1037.0,0.00016428,2]
[365193902,1749527432162,-207.4,0.00016428,2]
[365193903,1749527432171,-236.2055483,0.0001643,2]
[365193904,1749527432181,-166.76,0.00016436,2]
[365193905,1749527432190,-300.0,0.00016436,2]
[365193906,1749527432200,-614.39503844,0.00016437,2]
[365193907,1749527432209,-277.68675785,0.00016437,2]
[365193908,1749527432221,-293.96993391,0.00016437,2]
[365193909,1749527432231,-500.0,0.00016437,2]
[365193910,1749527432240,-500.0,0.00016437,2]
[365193911,1749527432250,-500.0,0.00016437,2]
[365193912,1749527432259,-237.15566627,0.00016437,2]
[365193913,1749527432268,-188.81721408,0.00016437,2]
[365193914,1749527432279,-162.48615355,0.00016437,2]
[365193915,1749527432289,-500.0,0.00016437,2]
[365193916,1749527432302,-383.40621291,0.00016437,2]
[365193917,1749527432312,-209.9074907,0.00016437,2]
[365193918,1749527432322,-157.22133133,0.00016437,2]
[365193919,1749527432332,-590.65831512,0.00016438,2]
[365193920,1749527432343,-480.0,0.00016438,2]
[365193921,1749527432353,-480.0,0.00016438,2]
[365193922,1749527432363,-490.0,0.00016438,2]
[365193923,1749527432374,-707.04,0.00016438,2]
[365193924,1749527432383,-490.0,0.00016438,2]
[365193925,1749527432393,-490.0,0.00016438,2]
[365193926,1749527432403,-500.0,0.00016438,2]
[365193927,1749527432412,-490.0,0.00016438,2]
[365193928,1749527432422,-490.0,0.00016438,2]
[365193929,1749527432431,-496.99556819,0.00016438,2]
[365193930,1749527432440,-490.0,0.00016438,2]
[365193931,1749527432449,-490.0,0.00016438,2]
[365193932,1749527432457,-490.0,0.00016438,2]
[365193933,1749527432467,-490.0,0.00016438,2]
[365193934,1749527432477,-490.0,0.00016438,2]
[365193935,1749527432487,-490.0,0.00016438,2]
[365193937,1749527432496,-490.0,0.00016438,2]
[365193939,1749527432505,-490.0,0.00016438,2]
[365193941,1749527432514,-490.0,0.00016438,2]
[365193943,1749527432523,-490.0,0.00016438,2]
[365193945,1749527432532,-490.0,0.00016438,2]
[365193947,1749527432541,-218.0922663,0.00016438,2]
[365193949,1749527432551,-490.0,0.00016438,2]
[365193951,1749527432559,-346.47647266,0.00016438,2]
[365193952,1749527432569,-490.0,0.00016438,2]
[365193953,1749527432580,-490.0,0.00016438,2]
[365193954,1749527432589,-582.24593918,0.00016438,2]
[365193955,1749527432598,-490.0,0.00016438,2]
[365193956,1749527432608,-490.0,0.00016438,2]
[365193957,1749527432617,-490.0,0.00016438,2]
[365193958,1749527432626,-490.0,0.00016438,2]
[365193959,1749527432635,-490.0,0.00016438,2]
[365193960,1749527432645,-490.0,0.00016438,2]
[365193961,1749527432654,-490.0,0.00016438,2]
[365193962,1749527432663,-490.0,0.00016438,2]
[365193963,1749527432671,-490.0,0.00016438,2]
[365193964,1749527432680,-490.0,0.00016438,2]
[365193965,1749527432689,-247.37443129,0.00016438,2]
[365193966,1749527432698,-490.0,0.00016438,2]
[365193967,1749527432706,-490.0,0.00016438,2]
[365193968,1749527432715,-490.0,0.00016438,2]
[365193969,1749527432724,-490.0,0.00016438,2]
[365193970,1749527432733,-490.0,0.00016438,2]
[365193971,1749527432742,-490.0,0.00016438,2]
[365193972,1749527432752,-490.0,0.00016438,2]
[365193973,1749527432761,-490.0,0.00016438,2]
[365193974,1749527432771,-490.0,0.00016438,2]
[365193975,1749527432781,-490.0,0.00016438,2]
[365193976,1749527432791,-490.0,0.00016438,2]
[365193977,1749527432800,-490.0,0.00016438,2]
[365193978,1749527432810,-489.67209158,0.00016438,2]
[365193979,1749527432820,-490.0,0.00016438,2]
[365193980,1749527432830,-490.0,0.00016438,2]
[365193981,1749527432840,-490.0,0.00016438,2]
[365193982,1749527432849,-490.0,0.00016438,2]
[365193983,1749527432859,-188.32346267,0.00016438,2]
[365193984,1749527432868,-490.0,0.00016438,2]
[365193985,1749527432877,-507.2,0.00016438,2]
[365193986,1749527432887,-519.39,0.00016438,2]
[365193987,1749527432898,-490.0,0.00016438,2]
[365193988,1749527432907,-490.0,0.00016438,2]
[365193989,1749527432916,-490.0,0.00016438,2]
[365193990,1749527432926,-490.0,0.00016438,2]
[365193991,1749527432936,-557.95,0.00016438,2]
[365193992,1749527432946,-490.0,0.00016438,2]
[365193993,1749527432957,-490.0,0.00016438,2]
[365193994,1749527432966,-490.0,0.00016438,2]
[365193995,1749527432976,-555.76896861,0.00016438,2]
[365193996,1749527432985,-490.0,0.00016438,2]
[365193997,1749527432995,-735.93,0.00016438,2]
[365193998,1749527433005,-490.0,0.00016438,2]
[365193999,1749527433015,-490.0,0.00016438,2]
[365194000,1749527433025,-490.0,0.00016438,2]
[365194001,1749527433035,-490.0,0.00016438,2]
[365194002,1749527433044,-490.0,0.00016438,2]
[365194003,1749527433054,-490.0,0.00016438,2]
[365194004,1749527433064,-490.0,0.00016438,2]
[365194005,1749527433074,-490.0,0.00016438,2]
[365194006,1749527433083,-794.71561165,0.00016438,2]
[365194007,1749527433102,-60.54438835,0.00016438,2]
[365194008,1749527433111,-285.20561169,0.00016438,2]
[365194009,1749527433131,-204.79438831,0.00016438,2]
[365194010,1749527433140,-490.0,0.00016438,2]
[365194011,1749527433150,-490.0,0.00016438,2]
[365194012,1749527433159,-1010.93,0.00016438,2]
[365194013,1749527433168,-490.0,0.00016438,2]
[365194014,1749527433178,-490.0,0.00016438,2]
[365194015,1749527433187,-490.0,0.00016438,2]
[365194016,1749527433197,-490.0,0.00016438,2]
[365194017,1749527433207,-724.99,0.00016438,2]
[365194018,1749527433216,-490.0,0.00016438,2]
[365194019,1749527433226,-490.0,0.00016438,2]
[365194020,1749527433234,-490.0,0.00016438,2]
[365194021,1749527433242,-490.0,0.00016438,2]
[365194022,1749527433251,-570.23,0.00016438,2]
[365194023,1749527433259,-490.0,0.00016438,2]
[365194024,1749527433268,-490.0,0.00016438,2]
[365194025,1749527433277,-490.0,0.00016438,2]
[365194026,1749527433286,-490.0,0.00016438,2]
[365194027,1749527433298,-490.0,0.00016438,2]
[365194028,1749527433307,-490.0,0.00016438,2]
[365194029,1749527433316,-490.0,0.00016438,2]
[365194030,1749527433326,-490.0,0.00016438,2]
[365194031,1749527433336,-490.0,0.00016438,2]
[365194032,1749527433346,-490.0,0.00016438,2]
[365194033,1749527433356,-490.0,0.00016438,2]
[365194034,1749527433366,-490.0,0.00016438,2]
[365194035,1749527433376,-490.0,0.00016438,2]
[365194036,1749527433386,-490.0,0.00016438,2]
[365194037,1749527433396,-203.12153087,0.00016438,2]
[365194038,1749527433406,-490.0,0.00016438,2]
[365194039,1749527433415,-490.0,0.00016438,2]
[365194040,1749527433424,-490.0,0.00016438,2]
[365194041,1749527433434,-490.0,0.00016438,2]
[365194042,1749527433445,-490.0,0.00016438,2]
[365194043,1749527433455,-504.2524399,0.00016438,2]
[365194044,1749527433465,-490.0,0.00016438,2]
[365194045,1749527433474,-490.0,0.00016438,2]
[365194046,1749527433484,-490.0,0.00016438,2]
[365194047,1749527433493,-490.0,0.00016438,2]
[365194048,1749527433503,-490.0,0.00016438,2]
[365194049,1749527433512,-490.0,0.00016438,2]
[365194050,1749527433574,-490.0,0.00016438,2]
[365194051,1749527433584,-490.0,0.00016438,2]
[365194052,1749527433593,-490.0,0.00016438,2]
[365194053,1749527433603,-490.0,0.00016438,2]
[365194054,1749527433612,-2242.36,0.00016438,2]
[365194055,1749527433621,-490.0,0.00016438,2]
[365194056,1749527433633,-490.0,0.00016438,2]
[365194057,1749527433642,-480.0,0.00016438,2]
[365194058,1749527433651,-490.0,0.00016438,2]
[365194059,1749527433661,-490.0,0.00016438,2]
[365194060,1749527433670,-490.0,0.00016438,2]
[365194061,1749527433680,-622.02,0.00016438,2]
[365194062,1749527433689,-490.0,0.00016438,2]
[365194063,1749527433699,-490.0,0.00016438,2]
[365194064,1749527433709,-490.0,0.00016438,2]
[365194065,1749527433718,-490.0,0.00016438,2]
[365194066,1749527433727,-490.0,0.00016438,2]
[365194067,1749527433737,-490.0,0.00016438,2]
[365194068,1749527433746,-490.0,0.00016438,2]
[365194069,1749527433756,-490.0,0.00016438,2]
[365194070,1749527433765,-490.0,0.00016438,2]
[365194071,1749527433775,-490.0,0.00016438,2]
[365194072,1749527433784,-482.94202292,0.00016438,2]
[365194073,1749527433794,-490.0,0.00016438,2]
[365194074,1749527433805,-490.0,0.00016438,2]
[365194075,1749527433814,-610.28,0.00016438,2]
[365194076,1749527433824,-490.0,0.00016438,2]
[365194077,1749527433835,-490.0,0.00016438,2]
[365194078,1749527433845,-490.0,0.00016438,2]
[365194079,1749527433854,-490.0,0.00016438,2]
[365194080,1749527433864,-490.0,0.00016438,2]
[365194081,1749527433874,-490.0,0.00016438,2]
[365194082,1749527433883,-490.0,0.00016438,2]
[365194083,1749527433893,-265.71973937,0.00016438,2]
[365194084,1749527433903,-490.0,0.00016438,2]
[365194085,1749527433912,-490.0,0.00016438,2]
[365194086,1749527433922,-460.42577203,0.00016438,2]
[365194087,1749527433932,-490.0,0.00016438,2]
[365194088,1749527433941,-533.46,0.00016438,2]
[365194089,1749527433951,-912.09,0.00016438,2]
[365194090,1749527433961,-235.78383166,0.00016438,2]
[365194091,1749527433971,-490.0,0.00016438,2]
[365194092,1749527433981,-490.0,0.00016438,2]
[365194093,1749527433991,-490.0,0.00016438,2]
[365194094,1749527434000,-490.0,0.00016438,2]
[365194095,1749527434010,-1195.17,0.00016438,2]
[365194096,1749527434019,-490.0,0.00016438,2]
[365194097,1749527434029,-490.0,0.00016438,2]
[365194098,1749527434039,-490.0,0.00016438,2]
[365194099,1749527434048,-490.0,0.00016438,2]
[365194100,1749527434057,-444.66039503,0.00016438,2]
[365194101,1749527434067,-490.0,0.00016438,2]
[365194102,1749527434076,-490.0,0.00016438,2]
[365194103,1749527434086,-490.0,0.00016438,2]
[365194104,1749527434096,-490.0,0.00016438,2]
[365194105,1749527434105,-490.0,0.00016438,2]
[365194106,1749527434115,-190.9583878,0.00016438,2]
[365194110,1749527438312,-193.01729625,0.00016436,2]
[365194111,1749527438322,-299.0416122,0.00016438,2]
[365194112,1749527438332,-490.0,0.00016438,2]
[365194113,1749527438342,-490.0,0.00016438,2]
[365194114,1749527438352,-490.0,0.00016438,2]
[365194115,1749527438362,-490.0,0.00016438,2]
[365194116,1749527438372,-67.63071486,0.00016438,2]
[365194119,1749527440198,-3339.0,0.00016438,2]
[365194120,1749527440335,-15356.32928514,0.00016438,2]
[365194121,1749527440344,-496.8398926,0.00016438,2]
[365194122,1749527440353,-568.22,0.00016438,2]
[365194123,1749527440363,-490.0,0.00016438,2]
[365194124,1749527440373,-490.0,0.00016438,2]
[365194125,1749527440382,-490.0,0.00016438,2]
[365194126,1749527440392,-490.0,0.00016438,2]
[365194127,1749527440401,-817.48,0.00016438,2]
[365194128,1749527440410,-877.13,0.00016438,2]
[365194129,1749527440419,-490.0,0.00016438,2]
[365194130,1749527440428,-490.0,0.00016438,2]
[365194131,1749527440437,-490.0,0.00016438,2]
[365194132,1749527440447,-490.0,0.00016438,2]
[365194133,1749527440455,-490.0,0.00016438,2]
[365194134,1749527440464,-490.0,0.00016438,2]
[365194135,1749527440474,-490.0,0.00016438,2]
[365194136,1749527440484,-490.0,0.00016438,2]
[365194137,1749527440499,-490.0,0.00016438,2]
[365194138,1749527440509,-490.0,0.00016438,2]
[365194139,1749527440518,-490.0,0.00016438,2]
[365194140,1749527440527,-490.0,0.00016438,2]
[365194141,1749527440536,-490.0,0.00016438,2]
[365194142,1749527440546,-490.0,0.00016438,2]
[365194143,1749527440555,-490.0,0.00016438,2]
[365194144,1749527440565,-1305.66,0.00016438,2]
[365194145,1749527440575,-490.0,0.00016438,2]
[365194146,1749527440584,-490.0,0.00016438,2]
[365194147,1749527440593,-2835.1,0.00016438,2]
[365194148,1749527440602,-490.0,0.00016438,2]
[365194149,1749527440611,-490.0,0.00016438,2]
[365194150,1749527440621,-178.07129484,0.00016438,2]
[365194151,1749527440631,-490.0,0.00016438,2]
[365194152,1749527440640,-490.0,0.00016438,2]
[365194153,1749527440650,-540.7,0.00016438,2]
[365194154,1749527440659,-490.0,0.00016438,2]
[365194155,1749527440668,-490.0,0.00016438,2]
[365194156,1749527440678,-490.0,0.00016438,2]
[365194157,1749527440687,-490.0,0.00016438,2]
[365194158,1749527440695,-490.0,0.00016438,2]
[365194159,1749527440703,-1282.76,0.00016438,2]
[365194160,1749527440712,-490.0,0.00016438,2]
[365194161,1749527440720,-235.67527008,0.00016438,2]
[365194162,1749527440728,-490.0,0.00016438,2]
[365194163,1749527440737,-490.0,0.00016438,2]
[365194164,1749527440746,-490.0,0.00016438,2]
[365194165,1749527440755,-490.0,0.00016438,2]
[365194166,1749527440765,-490.0,0.00016438,2]
[365194167,1749527440774,-490.0,0.00016438,2]
[365194168,1749527440783,-490.0,0.00016438,2]
[365194169,1749527440792,-490.0,0.00016438,2]
[365194170,1749527440802,-490.0,0.00016438,2]
[365194171,1749527440811,-490.0,0.00016438,2]
[365194172,1749527440820,-490.0,0.00016438,2]
[365194173,1749527440830,-490.0,0.00016438,2]
[365194174,1749527440840,-490.0,0.00016438,2]
[365194175,1749527440851,-464.83,0.00016438,2]
[365194176,1749527440861,-490.0,0.00016438,2]
[365194177,1749527440870,-490.0,0.00016438,2]
[365194178,1749527440879,-490.0,0.00016438,2]
[365194179,1749527440889,-490.0,0.00016438,2]
[365194180,1749527440899,-2030.296672,0.00016483,2]
[365194181,1749527440908,-2500.0,0.00016502,2]
[365194182,1749527440917,-250.0,0.0001652,2]
[365194183,1749527440927,-500.0,0.00016534,2]
[365194184,1749527440936,-2105.41764886,0.00016538,2]
[365194185,1749527440945,-2183.31810187,0.00016593,2]
[365194186,1749527440955,-707.04,0.00016601,2]
[365194187,1749527440964,-500.0,0.00016601,2]
[365194188,1749527440973,-500.0,0.00016601,2]
[365194189,1749527440983,-500.0,0.00016601,2]
[365194190,1749527440992,-490.0,0.00016602,2]
[365194191,1749527441001,-258.71128214,0.00016602,2]
[365194192,1749527441011,-490.0,0.00016602,2]
[365194193,1749527441020,-490.0,0.00016602,2]
[365194194,1749527441030,-490.0,0.00016602,2]
[365194195,1749527441039,-151.52484565,0.00016602,2]
[365194196,1749527441049,-490.0,0.00016602,2]
[365194197,1749527441058,-490.0,0.00016602,2]
[365194198,1749527441067,-490.0,0.00016602,2]
[365194199,1749527441076,-490.0,0.00016602,2]
[365194200,1749527441086,-490.0,0.00016602,2]
[365194201,1749527441095,-490.0,0.00016602,2]
[365194202,1749527441104,-490.0,0.00016602,2]
[365194203,1749527441113,-490.0,0.00016602,2]
[365194204,1749527441122,-490.0,0.00016602,2]
[365194205,1749527441131,-490.0,0.00016602,2]
[365194206,1749527441140,-490.0,0.00016602,2]
[365194207,1749527441150,-377.35940165,0.00016602,2]
[365194208,1749527441159,-490.0,0.00016602,2]
[365194209,1749527441168,-518.19944378,0.00016602,2]
[365194210,1749527441178,-314.83227495,0.00016602,2]
[365194211,1749527441187,-490.0,0.00016602,2]
[365194212,1749527441196,-568.4633613,0.00016602,2]
[365194213,1749527441205,-184.57,0.00016602,2]
[365194214,1749527441214,-490.0,0.00016602,2]
[365194215,1749527441223,-430.0,0.00016602,2]
[365194216,1749527441232,-490.0,0.00016602,2]
[365194217,1749527441241,-490.0,0.00016602,2]
[365194218,1749527441251,-490.0,0.00016602,2]
[365194219,1749527441260,-490.0,0.00016602,2]
[365194220,1749527441269,-490.0,0.00016602,2]
[365194221,1749527441278,-417.00673455,0.00016602,2]
[365194222,1749527441287,-490.0,0.00016602,2]
[365194223,1749527441301,-490.0,0.00016602,2]
[365194224,1749527441311,-490.0,0.00016602,2]
[365194225,1749527441320,-490.0,0.00016602,2]
[365194226,1749527441329,-490.0,0.00016602,2]
[365194227,1749527441341,-488.30981688,0.00016602,2]
[365194228,1749527441350,-490.0,0.00016602,2]
[365194229,1749527441360,-483.88064065,0.00016602,2]
[365194230,1749527441370,-490.0,0.00016602,2]
[365194231,1749527441381,-507.2,0.00016602,2]
[365194232,1749527441391,-490.0,0.00016602,2]
[365194233,1749527441400,-490.0,0.00016602,2]
[365194234,1749527441409,-490.0,0.00016602,2]
[365194235,1749527441419,-490.0,0.00016602,2]
[365194236,1749527441428,-735.93,0.00016602,2]
[365194237,1749527441437,-490.0,0.00016602,2]
[365194238,1749527441446,-490.0,0.00016602,2]
[365194239,1749527441455,-490.0,0.00016602,2]
[365194240,1749527441465,-490.0,0.00016602,2]
[365194241,1749527441474,-490.0,0.00016602,2]
[365194242,1749527441484,-490.0,0.00016602,2]
[365194243,1749527441494,-490.0,0.00016602,2]
[365194244,1749527441503,-490.0,0.00016602,2]
[365194245,1749527441512,-855.26,0.00016602,2]
[365194246,1749527441522,-490.0,0.00016602,2]
[365194247,1749527441531,-490.0,0.00016602,2]
[365194248,1749527441540,-490.0,0.00016602,2]
[365194249,1749527441550,-1010.93,0.00016602,2]
[365194250,1749527441560,-490.0,0.00016602,2]
[365194251,1749527441569,-205.7397649,0.00016602,2]
[365194252,1749527441579,-490.0,0.00016602,2]
[365194253,1749527441589,-547.02834518,0.00016602,2]
[365194254,1749527441598,-724.99,0.00016602,2]
[365194255,1749527441609,-490.0,0.00016602,2]
[365194256,1749527441619,-490.0,0.00016602,2]
[365194257,1749527441628,-490.0,0.00016602,2]
[365194258,1749527441638,-438.15082401,0.00016602,2]
[365194259,1749527441648,-570.23,0.00016602,2]
[365194260,1749527441657,-490.0,0.00016602,2]
[365194261,1749527441667,-490.0,0.00016602,2]
[365194262,1749527441677,-490.0,0.00016602,2]
[365194263,1749527441686,-490.0,0.00016602,2]
[365194264,1749527441696,-490.0,0.00016602,2]
[365194265,1749527441706,-490.0,0.00016602,2]
[365194266,1749527441716,-490.0,0.00016602,2]
[365194267,1749527441726,-490.0,0.00016602,2]
[365194268,1749527441736,-490.0,0.00016602,2]
[365194269,1749527441746,-490.0,0.00016602,2]
[365194270,1749527441756,-490.0,0.00016602,2]
[365194271,1749527441765,-490.0,0.00016602,2]
[365194272,1749527441775,-490.0,0.00016602,2]
[365194273,1749527441785,-490.0,0.00016602,2]
[365194274,1749527441795,-490.0,0.00016602,2]
[365194275,1749527441804,-490.0,0.00016602,2]
[365194276,1749527441814,-490.0,0.00016602,2]
[365194277,1749527441824,-490.0,0.00016602,2]
[365194278,1749527441834,-490.0,0.00016602,2]
[365194279,1749527441844,-490.0,0.00016602,2]
[365194280,1749527441854,-490.0,0.00016602,2]
[365194281,1749527441864,-490.0,0.00016602,2]
[365194282,1749527441874,-2242.36,0.00016602,2]
[365194283,1749527441884,-490.0,0.00016602,2]
[365194284,1749527441894,-490.0,0.00016602,2]
[365194285,1749527441904,-288.25587196,0.00016602,2]
[365194286,1749527441914,-490.0,0.00016602,2]
[365194287,1749527441924,-622.02,0.00016602,2]
[365194288,1749527441934,-490.0,0.00016602,2]
[365194289,1749527441944,-490.0,0.00016602,2]
[365194290,1749527441955,-490.0,0.00016602,2]
[365194291,1749527441966,-490.0,0.00016602,2]
[365194292,1749527441975,-490.0,0.00016602,2]
[365194293,1749527441985,-490.0,0.00016602,2]
[365194294,1749527441995,-490.0,0.00016602,2]
[365194295,1749527442005,-490.0,0.00016602,2]
[365194296,1749527442019,-490.0,0.00016602,2]
[365194297,1749527442029,-490.0,0.00016602,2]
[365194298,1749527442038,-490.0,0.00016602,2]
[365194299,1749527442048,-490.0,0.00016602,2]
[365194300,1749527442057,-490.0,0.00016602,2]
[365194301,1749527442067,-610.28,0.00016602,2]
[365194302,1749527442077,-490.0,0.00016602,2]
[365194303,1749527442087,-490.0,0.00016602,2]
[365194304,1749527442096,-490.0,0.00016602,2]
[365194305,1749527442106,-490.0,0.00016602,2]
[365194306,1749527442116,-490.0,0.00016602,2]
[365194307,1749527442125,-490.0,0.00016602,2]
[365194308,1749527442135,-490.0,0.00016602,2]
[365194309,1749527442145,-490.0,0.00016602,2]
[365194310,1749527442155,-533.46,0.00016602,2]
[365194311,1749527442164,-912.09,0.00016602,2]
[365194312,1749527442174,-490.0,0.00016602,2]
[365194313,1749527442183,-490.0,0.00016602,2]
[365194314,1749527442192,-490.0,0.00016602,2]
[365194315,1749527442202,-490.0,0.00016602,2]
[365194316,1749527442211,-1195.17,0.00016602,2]
[365194317,1749527442220,-207.52523668,0.00016602,2]
[365194318,1749527442230,-490.0,0.00016602,2]
[365194319,1749527442239,-490.0,0.00016602,2]
[365194320,1749527442248,-450.0,0.00016602,2]
[365194321,1749527442258,-490.0,0.00016602,2]
[365194322,1749527442268,-490.0,0.00016602,2]
[365194323,1749527442277,-490.0,0.00016602,2]
[365194324,1749527442287,-490.0,0.00016602,2]
[365194325,1749527442298,-490.0,0.00016602,2]
[365194326,1749527442309,-490.0,0.00016602,2]
[365194327,1749527442319,-490.0,0.00016602,2]
[365194328,1749527442329,-490.0,0.00016602,2]
[365194329,1749527442339,-490.0,0.00016602,2]
[365194330,1749527442348,-18762.96,0.00016602,2]
[365194331,1749527442358,-568.22,0.00016602,2]
[365194332,1749527442367,-490.0,0.00016602,2]
[365194333,1749527442379,-490.0,0.00016602,2]
[365194334,1749527442389,-490.0,0.00016602,2]
[365194335,1749527442399,-817.48,0.00016602,2]
[365194336,1749527442408,-877.13,0.00016602,2]
[365194337,1749527442417,-490.0,0.00016602,2]
[365194338,1749527442427,-490.0,0.00016602,2]
[365194339,1749527442436,-490.0,0.00016602,2]
[365194340,1749527442445,-490.0,0.00016602,2]
[365194341,1749527442455,-490.0,0.00016602,2]
[365194342,1749527442465,-490.0,0.00016602,2]
[365194343,1749527442475,-224.5,0.00016602,2]
[365194344,1749527442484,-490.0,0.00016602,2]
[365194345,1749527442494,-490.0,0.00016602,2]
[365194346,1749527442504,-490.0,0.00016602,2]
[365194347,1749527442513,-490.0,0.00016602,2]
[365194348,1749527442523,-490.0,0.00016602,2]
[365194349,1749527442533,-490.0,0.00016602,2]
[365194350,1749527442542,-490.0,0.00016602,2]
[365194351,1749527442552,-490.0,0.00016602,2]
[365194352,1749527442562,-1305.66,0.00016602,2]
[365194353,1749527442571,-490.0,0.00016602,2]
[365194354,1749527442581,-490.0,0.00016602,2]
[365194355,1749527442591,-2835.1,0.00016602,2]
[365194356,1749527442601,-490.0,0.00016602,2]
[365194357,1749527442611,-490.0,0.00016602,2]
[365194358,1749527442621,-490.0,0.00016602,2]
[365194359,1749527442631,-490.0,0.00016602,2]
[365194360,1749527442641,-540.7,0.00016602,2]
[365194361,1749527442651,-490.0,0.00016602,2]
[365194362,1749527442662,-490.0,0.00016602,2]
[365194363,1749527442672,-490.0,0.00016602,2]
[365194364,1749527442683,-490.0,0.00016602,2]
[365194365,1749527442693,-490.0,0.00016602,2]
[365194366,1749527442702,-1282.76,0.00016602,2]
[365194367,1749527442712,-490.0,0.00016602,2]
[365194368,1749527442722,-490.0,0.00016602,2]
[365194369,1749527442732,-490.0,0.00016602,2]
[365194370,1749527442742,-490.0,0.00016602,2]
[365194371,1749527442752,-490.0,0.00016602,2]